fUST/lending_fUST_20251007
["ID","MTS","AMOUNT","RATE_DAILY","PERIOD"]
[389787846,1759848638023,-9241.20000002,0.00017573,2]
[389787847,1759848638035,-9229.99999999,0.00017573,2]
[389787848,1759848638048,-1975.283496,0.00017573,2]
[389787849,1759848638060,-3776.28806406,0.00017573,2]
[389787850,1759848638072,-415.97312566,0.00017573,2]
[389787851,1759848638097,-4769.55304483,0.00017573,2]
[389787852,1759848638108,-433.09,0.00017578,3]
[389787853,1759848638117,-226.78,0.00017578,3]
[389787854,1759848638127,-680.34,0.00017578,3]
[389787855,1759848638137,-649.65,0.00017578,3]
[389787856,1759848638147,-183.41899847,0.00017586,2]
[389787857,1759848638158,-500.0,0.00017586,2]
[389787858,1759848638168,-500.0,0.00017586,2]
[389787859,1759848638178,-500.0,0.00017586,2]
[389787860,1759848638188,-500.0,0.00017586,2]
[389787861,1759848638198,-365.69232602,0.00017586,2]
[389787862,1759848638208,-276.17688339,0.00017586,2]
[389787863,1759848638218,-299.66912085,0.00017586,2]
[389787864,1759848638228,-500.0,0.00017586,2]
[389787865,1759848638238,-500.0,0.00017586,2]
[389787866,1759848638247,-500.0,0.00017586,2]
[389787867,1759848638257,-500.0,0.00017586,2]
[389787868,1759848638267,-500.0,0.00017586,2]
[389787869,1759848638277,-500.0,0.00017586,2]
[389787870,1759848638286,-500.0,0.00017586,2]
[389787871,1759848638296,-500.0,0.00017586,2]
[389787872,1759848638306,-500.0,0.00017586,2]
[389787873,1759848638315,-500.0,0.00017586,2]
[389787874,1759848638324,-500.0,0.00017586,2]
[389787875,1759848638334,-500.0,0.00017586,2]
[389787876,1759848638346,-206.71594665,0.00017586,2]
[389787877,1759848638356,-500.0,0.00017586,2]
[389787878,1759848638366,-500.0,0.00017586,2]
[389787879,1759848638376,-500.0,0.00017586,2]
[389787880,1759848638386,-500.0,0.00017586,2]
[389787881,1759848638395,-500.0,0.00017586,2]
[389787882,1759848638404,-584.07600989,0.00017586,2]
[389787883,1759848638413,-154.72717042,0.00017586,2]
[389787884,1759848638423,-500.0,0.00017587,2]
[389787885,1759848638432,-420.73995458,0.00017587,2]
[389787886,1759848638442,-433.7685163,0.00017587,2]
[389787887,1759848638452,-370000.0,0.00017588,2]
[389787888,1759848638461,-2000.0,0.000176,2]
[389787889,1759848638471,-2000.0,0.000176,2]
[389787890,1759848638480,-2000.0,0.000176,2]
[389787891,1759848638490,-2000.0,0.000176,2]
[389787892,1759848638500,-2000.0,0.000176,2]
[389787893,1759848638510,-2000.0,0.000176,2]
[389787894,1759848638520,-2000.0,0.000176,2]
[389787895,1759848638529,-2000.0,0.000176,2]
[389787896,1759848638546,-2000.0,0.000176,2]
[389787897,1759848638557,-2000.0,0.000176,2]
[389787898,1759848638567,-2000.0,0.000176,2]
[389787899,1759848638577,-2000.0,0.000176,2]
[389787900,1759848638589,-2000.0,0.000176,2]
[389787901,1759848638598,-2000.0,0.000176,2]
[389787902,1759848638609,-2000.0,0.000176,2]
[389787903,1759848638619,-2000.0,0.000176,2]
[389787904,1759848638630,-2000.0,0.000176,2]
[389787905,1759848638640,-2000.0,0.000176,2]
[389787906,1759848638650,-2000.0,0.000176,2]
[389787907,1759848638659,-2000.0,0.000176,2]
[389787908,1759848638669,-2000.0,0.000176,2]
[389787909,1759848638679,-2000.0,0.000176,2]
[389787910,1759848638689,-2000.0,0.000176,2]
[389787911,1759848638699,-2000.0,0.000176,2]
[389787912,1759848638708,-2000.0,0.000176,2]
[389787913,1759848638718,-2000.0,0.000176,2]
[389787914,1759848638728,-2000.0,0.000176,2]
[389787915,1759848638738,-226.749,0.000176,2]
[389787916,1759848638748,-2000.0,0.000176,2]
[389787917,1759848638758,-966.46148311,0.00017808,7]
[389787918,1759848638767,-151.0,0.00017889,2]
[389787919,1759848638777,-151.0,0.00017889,2]
[389787920,1759848638787,-500.0,0.00017889,2]
[389787921,1759848638797,-151.0,0.00017889,2]
[389787922,1759848638806,-300.0,0.00017939,2]
[389787923,1759848638817,-300.0,0.00017939,2]
[389787924,1759848638827,-300.0,0.00017939,2]
[389787925,1759848638840,-300.0,0.00017939,2]
[389787926,1759848638849,-300.0,0.00017939,2]
[389787927,1759848638859,-300.0,0.00017939,2]
[389787928,1759848638869,-300.0,0.00017939,2]
[389787929,1759848638880,-300.0,0.00017939,2]
[389787930,1759848638890,-300.0,0.00017939,2]
[389787931,1759848638900,-300.0,0.00017939,2]
[389787932,1759848638911,-300.0,0.00017939,2]
[389787933,1759848638921,-300.0,0.00017939,2]
[389787934,1759848639184,-300.0,0.00017939,2]
[389787935,1759848639197,-300.0,0.00017939,2]
[389787936,1759848639207,-300.0,0.00017939,2]
[389787937,1759848639217,-600.0,0.00017939,2]
[389787938,1759848639227,-151.0,0.00018,2]
[389787939,1759848639237,-345.0,0.00018022,2]
[389787940,1759848639246,-151.0,0.000181,2]
[389787941,1759848639255,-500.0,0.00018163,2]
[389787942,1759848639265,-151.0,0.00018163,2]
[389787943,1759848639275,-185.3456761,0.00018204,2]
[389787944,1759848639284,-500.0,0.00018215,2]
[389787945,1759848639293,-500.0,0.00018215,2]
[389787946,1759848639302,-502.06029178,0.00018215,2]
[389787947,1759848639312,-500.0,0.00018215,2]
[389787948,1759848639322,-201.19665946,0.00018215,2]
[389787949,1759848639331,-6678.27771977,0.00018243,2]
[389787950,1759848639344,-500.0,0.00018307,2]
[389787951,1759848639354,-500.0,0.00018307,2]
[389787952,1759848639363,-500.0,0.00018307,2]
[389787953,1759848639373,-500.0,0.00018307,2]
[389787954,1759848639384,-500.0,0.00018307,2]
[389787955,1759848639394,-500.0,0.00018307,2]
[389787956,1759848639404,-500.0,0.00018307,2]
[389787957,1759848639414,-183.04545071,0.00018307,2]
[389787958,1759848639423,-500.0,0.00018307,2]
[389787959,1759848639433,-159.63927334,0.00018307,2]
[389787960,1759848639443,-1000.0,0.00018356,2]
[389787961,1759848639452,-453.10859783,0.00018429,2]
[389787962,1759848639461,-347.59610993,0.00018429,2]
[389787963,1759848639471,-500.0,0.00018437,2]
[389787964,1759848639480,-198.0,0.00018437,2]
[389787965,1759848639490,-500.0,0.00018533,2]
[389787966,1759848639499,-151.0,0.000186,2]
[389787967,1759848639508,-1000.0,0.0001863,2]
[389787968,1759848639518,-151.0,0.000187,2]
[389787969,1759848639528,-349.0,0.00018711,2]
[389787970,1759848639537,-151.0,0.00018711,2]
[389787971,1759848639547,-168.99728248,0.00018711,2]
[389787972,1759848639556,-230.01271824,0.00018711,2]
[389787973,1759848639566,-151.0,0.00018711,2]
[389787974,1759848639575,-151.29688684,0.00018711,2]
[389787975,1759848639585,-151.18641285,0.00018711,2]
[389787976,1759848639597,-151.0,0.00018711,2]
[389787977,1759848639607,-151.0,0.00018711,2]
[389787978,1759848639616,-1000.0,0.00018763,2]
[389787979,1759848639627,-1000.0,0.00018763,2]
[389787980,1759848639641,-1000.0,0.00018763,2]
[389787981,1759848639651,-1012.5295479,0.00018855,2]
[389787982,1759848639660,-1000.0,0.00018855,2]
[389787983,1759848639670,-1000.0,0.00018855,2]
[389787985,1759848639680,-1000.0,0.00018855,2]
[389787986,1759848639689,-1000.0,0.00018855,2]
[389787987,1759848639698,-1000.0,0.00018855,2]
[389787988,1759848639707,-1000.0,0.00018855,2]
[389787989,1759848639716,-1000.0,0.00018904,2]
[389787990,1759848639726,-185.3456761,0.00018907,2]
[389787992,1759848639735,-453.56,0.00018948,3]
[389787993,1759848639746,-151.0,0.00018985,2]
[389787994,1759848639755,-151.0,0.00018985,2]
[389787995,1759848639765,-205.3908823,0.00018985,2]
[389787996,1759848639775,-160.0,0.00019044,2]
[389787997,1759848639784,-160.0,0.00019079,2]
[389787998,1759848639793,-234.20938206,0.00019079,2]
[389787999,1759848639804,-402.02512307,0.00019079,2]
[389788000,1759848639814,-533.72506543,0.00019079,2]
[389788001,1759848639824,-1000.0,0.00019081,2]
[389788002,1759848639834,-151.0,0.000191,2]
[389788003,1759848639847,-420.0,0.00019103,2]
[389788005,1759848639856,-289.0,0.00019103,2]
[389788006,1759848639866,-420.0,0.00019103,2]
[389788008,1759848639875,-212.9799877,0.00019151,2]
[389788010,1759848639885,-1000.0,0.00019178,2]
[389788011,1759848639896,-151.36892429,0.00019178,2]
[389788013,1759848639906,-3307.59957628,0.00019178,2]
[389788015,1759848639919,-1680.0,0.00019197,2]
[389788017,1759848639940,-151.0,0.00019259,2]
[389788019,1759848639959,-186.61502716,0.00019259,2]
[389788020,1759848639969,-151.0,0.000193,2]
[389788022,1759848639978,-1500.0,0.00019311,2]
[389788024,1759848639988,-1500.0,0.00019311,2]
[389788026,1759848639997,-847.91586692,0.00019311,2]
[389788027,1759848640006,-300.0,0.00019315,2]
[389788028,1759848640016,-1500.0,0.00019403,2]
[389788030,1759848640026,-1590.40964009,0.00019403,2]
[389788032,1759848640040,-1500.0,0.00019403,2]
[389788034,1759848640050,-1500.0,0.00019403,2]
[389788035,1759848640059,-1500.0,0.00019403,2]
[389788036,1759848640069,-261.43381594,0.00019403,2]
[389788038,1759848640078,-1000.0,0.00019452,2]
[389788040,1759848640089,-528.52332229,0.00019452,2]
[389788041,1759848640098,-151.0,0.00019533,2]
[389788042,1759848640108,-260.0,0.00019592,2]
[389788043,1759848640117,-185.3456761,0.00019611,2]
[389788044,1759848640127,-1500.0,0.00019629,2]
[389788045,1759848640137,-260.69708246,0.00019657,2]
[389788046,1759848640146,-910.99,0.00019664,2]
[389788047,1759848640155,-151.0,0.000197,2]
[389788048,1759848640165,-384.3114547,0.00019715,2]
[389788049,1759848640175,-1000.0,0.00019726,2]
[389788050,1759848640186,-301.60032361,0.00019727,2]
[389788051,1759848640195,-720.0,0.00019733,2]
[389788053,1759848640206,-168.01695143,0.00019805,2]
[389788055,1759848640215,-198.29765707,0.00019807,2]
[389788057,1759848640224,-500.0,0.00019807,2]
[389788059,1759848640233,-151.0,0.00019807,2]
[389788061,1759848640242,-151.0,0.00019807,2]
[389788063,1759848640252,-301.999999,0.00019807,2]
[389788065,1759848640260,-151.0,0.00019807,2]
[389788067,1759848640270,-151.0,0.00019807,2]
[389788068,1759848640279,-151.0,0.00019807,2]
[389788071,1759848640289,-151.57643874,0.00019807,2]
[389788072,1759848640298,-500.0,0.00019807,2]
[389788074,1759848640308,-500.0,0.00019807,2]
[389788076,1759848640317,-151.0,0.00019807,2]
[389788078,1759848640327,-500.0,0.00019807,2]
[389788080,1759848640336,-500.0,0.00019807,2]
[389788081,1759848640347,-215.13416699,0.00019807,2]
[389788083,1759848640356,-500.0,0.00019807,2]
[389788084,1759848640365,-151.0,0.00019807,2]
[389788085,1759848640374,-1330.0,0.00019807,2]
[389788086,1759848640385,-151.0,0.00019807,2]
[389788087,1759848640395,-151.0,0.00019807,2]
[389788088,1759848640405,-2000.0,0.00019859,2]
[389788089,1759848640414,-2000.0,0.00019859,2]
[389788090,1759848640424,-151.0,0.000199,2]
[389788091,1759848640433,-2000.0,0.00019951,2]
[389788092,1759848640442,-2000.0,0.00019951,2]
[389788093,1759848640452,-2000.0,0.00019951,2]
[389788094,1759848640463,-2000.0,0.00019951,2]
[389788095,1759848640472,-303.04464238,0.0002,2]
[389788096,1759848640483,-1000.0,0.0002,2]
[389788097,1759848640492,-180.03240583,0.0002,2]
[389788098,1759848640502,-174.685,0.00020005,2]
[389788099,1759848640511,-500.0,0.00020081,2]
[389788100,1759848640521,-151.0,0.00020081,2]
[389788101,1759848640530,-151.0,0.00020081,2]
[389788102,1759848640539,-257.23413138,0.00020081,2]
[389788103,1759848640549,-500.82343283,0.00020081,2]
[389788104,1759848640559,-500.0,0.00020081,2]
[389788105,1759848640568,-151.0,0.00020081,2]
[389788106,1759848640578,-500.0,0.00020081,2]
[389788107,1759848640590,-557.35058289,0.00020081,2]
[389788108,1759848640600,-500.0,0.00020081,2]
[389788109,1759848640609,-151.0,0.00020081,2]
[389788110,1759848640619,-1330.0,0.00020081,2]
[389788111,1759848640628,-151.0,0.00020081,2]
[389788112,1759848640638,-168.0,0.00020098,2]
[389788113,1759848640648,-911.0,0.00020139,2]
[389788114,1759848640658,-980.0,0.0002014,2]
[389788115,1759848640668,-630.0,0.0002014,2]
[389788116,1759848640677,-2158.0,0.0002014,2]
[389788117,1759848640687,-250.0,0.0002014,2]
[389788118,1759848640696,-360.0,0.0002014,2]
[389788119,1759848640706,-2000.0,0.00020177,2]
[389788120,1759848640716,-151.0,0.000202,3]
[389788121,1759848640725,-911.0,0.00020218,2]
[389788122,1759848640735,-911.0,0.0002022,2]
[389788123,1759848640753,-1000.0,0.00020273,2]
[389788124,1759848640766,-168.0,0.00020303,2]
[389788125,1759848640776,-500.0,0.00020355,2]
[389788126,1759848640786,-151.35091737,0.00020355,2]
[389788127,1759848640795,-151.0,0.00020355,2]
[389788128,1759848640806,-500.0,0.00020355,2]
[389788129,1759848640816,-151.40055561,0.00020355,2]
[389788130,1759848640827,-151.0,0.00020355,2]
[389788131,1759848640836,-152.9147262,0.00020355,2]
[389788132,1759848640850,-198.0,0.00020355,2]
[389788133,1759848640861,-1330.0,0.00020355,2]
[389788134,1759848640871,-151.0,0.00020355,2]
[389788135,1759848640881,-2200.737,0.000204,2]
[389788136,1759848640892,-151.0,0.000204,3]
[389788137,1759848640902,-2500.0,0.00020407,2]
[389788138,1759848640912,-2500.0,0.00020407,2]
[389788139,1759848640923,-911.0,0.00020412,2]
[389788140,1759848640933,-598.44763185,0.00020427,2]
[389788141,1759848640943,-151.0,0.00020427,2]
[389788142,1759848640953,-156.72031789,0.00020427,2]
[389788143,1759848640963,-2463.35595773,0.00020427,2]
[389788144,1759848640973,-161.56193443,0.00020438,3]
[389788145,1759848640983,-2500.0,0.00020498,2]
[389788146,1759848640993,-2500.0,0.00020498,2]
[389788147,1759848641002,-2500.0,0.00020498,2]
[389788148,1759848641012,-2500.0,0.00020498,2]
[389788149,1759848641022,-2000.0,0.000205,2]
[389788150,1759848641034,-168.0,0.00020538,2]
[389788151,1759848641047,-151.70599437,0.00020547,2]
[389788152,1759848641057,-911.0,0.00020596,2]
[389788153,1759848641067,-500.0,0.00020629,2]
[389788154,1759848641079,-198.0,0.00020629,2]
[389788155,1759848641092,-380.59985086,0.00020629,2]
[389788156,1759848641102,-1330.0,0.00020629,2]
[389788157,1759848641112,-194.81870126,0.00020629,2]
[389788158,1759848641122,-911.0,0.00020641,2]
[389788159,1759848641132,-460.0,0.00020688,2]
[389788160,1759848641142,-151.0,0.000207,4]
[389788161,1759848641152,-911.0,0.0002071,2]
[389788162,1759848641162,-1124.02490268,0.00020725,2]
[389788163,1759848641172,-587.0,0.00020854,2]
[389788164,1759848641182,-587.0,0.00020854,2]
[389788165,1759848641192,-202.76439747,0.00020886,2]
[389788166,1759848641201,-159.88976109,0.00020903,2]
[389788167,1759848641210,-1330.0,0.00020903,2]
[389788168,1759848641220,-3383.0133844,0.0002095,2]
[389788169,1759848641230,-3000.0,0.00020955,2]
[389788170,1759848641240,-3000.0,0.00020955,2]
[389788171,1759848641250,-1000.0,0.00020987,4]
[389788172,1759848641259,-151.0,0.00021,3]
[389788173,1759848641270,-168.0,0.00021022,2]
[389788174,1759848641280,-3000.0,0.00021046,2]
[389788175,1759848641289,-3000.0,0.00021046,2]
[389788176,1759848641299,-3000.0,0.00021046,2]
[389788177,1759848641308,-3000.0,0.00021046,2]
[389788178,1759848641318,-2351.0,0.00021061,2]
[389788179,1759848641327,-152.57221,0.00021096,2]
[389788180,1759848641337,-1330.0,0.00021177,2]
[389788181,1759848641350,-911.0,0.00021197,2]
[389788182,1759848641360,-911.0,0.0002123,2]
[389788183,1759848641370,-560.0,0.00021236,2]
[389788184,1759848641380,-1000.0,0.000213,2]
[389788185,1759848641390,-1000.0,0.000213,2]
[389788186,1759848641400,-1000.0,0.000213,2]
[389788187,1759848641410,-1000.0,0.000213,2]
[389788188,1759848641419,-1000.0,0.000213,2]
[389788189,1759848641429,-1000.0,0.000213,2]
[389788190,1759848641438,-1000.0,0.000213,2]
[389788191,1759848641448,-1000.0,0.000213,2]
[389788192,1759848641457,-1000.0,0.000213,2]
[389788193,1759848641467,-1000.0,0.000213,2]
[389788194,1759848641477,-391.570509,0.000213,2]
[389788195,1759848641486,-151.0,0.000213,3]
[389788196,1759848641496,-911.0,0.00021332,2]
[389788197,1759848641506,-11375.88556264,0.00021345,7]
[389788198,1759848641515,-402.02512307,0.00021345,7]
[389788199,1759848641525,-533.72506543,0.00021345,7]
[389788200,1759848641535,-1330.0,0.00021451,2]
[389788201,1759848641545,-911.0,0.00021476,2]
[389788202,1759848641555,-2000.0,0.000215,2]
[389788203,1759848641565,-3500.0,0.00021503,2]
[389788204,1759848641575,-3500.0,0.00021503,2]
[389788205,1759848641586,-168.0,0.00021513,2]
[389788206,1759848641602,-171.0,0.00021534,5]
[389788207,1759848641612,-3500.0,0.00021594,2]
[389788208,1759848641622,-3500.0,0.00021594,2]
[389788209,1759848641633,-3500.0,0.00021594,2]
[389788210,1759848641643,-3500.0,0.00021594,2]
[389788211,1759848641654,-151.0,0.000216,3]
[389788212,1759848641664,-579.87466385,0.00021621,2]
[389788213,1759848641675,-358.07527654,0.00021621,2]
[389788214,1759848641685,-911.0,0.00021654,2]
[389788215,1759848641695,-373.339,0.00021655,2]
[389788216,1759848641705,-911.0,0.00021656,2]
[389788217,1759848641715,-864.0,0.00021706,20]
[389788218,1759848641725,-1330.0,0.00021725,2]
[389788219,1759848641735,-168.0,0.0002175,2]
[389788220,1759848641745,-660.0,0.00021784,2]
[389788221,1759848641755,-179.565,0.000218,2]
[389788222,1759848641765,-151.0,0.000218,3]
[389788223,1759848641774,-279.06357233,0.00021806,2]
[389788224,1759848641784,-500.0,0.00021811,2]
[389788225,1759848641794,-911.0,0.00021814,2]
[389788226,1759848641804,-168.0,0.00021853,2]
[389788227,1759848641813,-911.0,0.00021855,2]
[389788228,1759848641823,-500.0,0.00021861,2]
[389788229,1759848641833,-500.0,0.00021925,2]
[389788230,1759848641845,-500.0,0.00021956,2]
[389788231,1759848641855,-911.0,0.00021978,2]
[389788232,1759848641864,-500.0,0.00021978,2]
[389788233,1759848641875,-36953.97279197,0.00021988,2]
[389788234,1759848641884,-19361.94710176,0.00021998,2]
[389788235,1759848641895,-1330.0,0.00021999,2]
[389788236,1759848641904,-2000.0,0.00022,2]
[389788237,1759848641914,-800.0,0.00022002,2]
[389788238,1759848641924,-800.0,0.00022002,2]
[389788239,1759848641933,-500.0,0.00022009,2]
[389788240,1759848641943,-800.0,0.00022013,2]
[389788241,1759848641953,-911.0,0.00022027,2]
[389788242,1759848641963,-4000.0,0.00022051,2]
[389788243,1759848641974,-1536.05707338,0.00022051,2]
[389788244,1759848641983,-168.0,0.00022056,2]
[389788245,1759848641993,-1432.30110616,0.00022074,2]
[389788246,1759848642003,-1442.14265181,0.00022076,2]
[389788247,1759848642012,-231.73073997,0.00022114,2]
[389788248,1759848642023,-157.29,0.00022114,2]
[389788249,1759848642035,-4000.0,0.00022142,2]
[389788250,1759848642046,-1007.61206826,0.00022142,2]
[389788251,1759848642057,-4000.0,0.00022142,2]
[389788252,1759848642067,-1069.27703144,0.00022142,2]
[389788253,1759848642076,-800.0,0.00022166,2]
[389788254,1759848642086,-800.0,0.00022169,2]
[389788255,1759848642098,-151.0,0.000222,5]
[389788256,1759848642107,-499.3,0.00022217,2]
[389788257,1759848642117,-500.0,0.0002222,2]
[389788258,1759848642127,-500.0,0.00022249,2]
[389788259,1759848642136,-1442.14265181,0.00022265,2]
[389788260,1759848642146,-500.0,0.00022269,8]
[389788261,1759848642156,-1330.0,0.00022273,2]
[389788262,1759848642166,-760.0,0.00022332,2]
[389788263,1759848642176,-486.7513427,0.0002234,2]
[389788264,1759848642185,-500.0,0.00022341,8]
[389788265,1759848642195,-500.0,0.00022341,8]
[389788266,1759848642206,-600.0,0.00022342,2]
[389788267,1759848642215,-800.0,0.00022358,2]
[389788268,1759848642226,-151.0,0.000224,7]
[389788269,1759848642235,-800.0,0.00022424,2]
[389788270,1759848642245,-502.07208839,0.00022493,2]
[389788271,1759848642255,-800.0,0.00022499,2]
[389788272,1759848642265,-1094.8,0.000225,2]
[389788273,1759848642275,-800.0,0.0002251,2]
[389788274,1759848642286,-1000.0,0.00022512,5]
[389788275,1759848642296,-1442.14265181,0.00022527,2]
[389788276,1759848642306,-1330.0,0.00022547,2]
[389788277,1759848642315,-500.0,0.00022564,2]
[389788278,1759848642325,-600.0,0.00022575,2]
[389788279,1759848642334,-800.0,0.0002259,2]
[389788280,1759848642345,-500.0,0.00022596,2]
[389788281,1759848642355,-4500.0,0.00022599,2]
[389788282,1759848642365,-800.0,0.00022616,2]
[389788283,1759848642375,-500.0,0.00022617,2]
[389788284,1759848642385,-152.57221,0.00022643,7]
[389788285,1759848642395,-800.0,0.00022663,2]
[389788286,1759848642404,-4500.0,0.0002269,2]
[389788287,1759848642414,-4500.0,0.0002269,2]
[389788288,1759848642424,-500.0,0.00022693,2]
[389788289,1759848642433,-2000.0,0.000227,2]
[389788290,1759848642443,-2000.0,0.000227,2]
[389788292,1759848642452,-2000.0,0.000227,2]
[389788294,1759848642461,-500.0,0.00022747,2]
[389788295,1759848642472,-500.0,0.00022751,2]
[389788296,1759848642482,-823.0,0.00022766,2]
[389788297,1759848642491,-500.0,0.00022788,2]
[389788298,1759848642501,-151.0,0.000228,8]
[389788299,1759848642511,-151.0,0.000228,8]
[389788300,1759848642520,-152.57221,0.00022808,2]
[389788301,1759848642531,-1330.0,0.00022821,2]
[389788302,1759848642541,-500.0,0.00022842,2]
[389788303,1759848642551,-800.0,0.00022855,2]
[389788304,1759848642561,-204.0,0.0002286,6]
[389788305,1759848642571,-500.0,0.00022873,2]
[389788306,1759848642581,-500.0,0.00022873,2]
[389788307,1759848642593,-500.0,0.00022873,2]
[389788308,1759848642603,-500.0,0.00022873,2]
[389788309,1759848642613,-500.0,0.00022873,2]
[389788310,1759848642623,-500.0,0.00022873,2]
[389788311,1759848642633,-500.0,0.00022873,2]
[389788312,1759848642643,-500.0,0.00022873,2]
[389788313,1759848642652,-500.0,0.00022873,2]
[389788314,1759848642663,-500.0,0.00022873,2]
[389788315,1759848642672,-500.0,0.00022873,2]
[389788316,1759848642682,-627.73257475,0.00022873,2]
[389788317,1759848642691,-500.0,0.00022873,2]
[389788318,1759848642701,-500.0,0.00022873,2]
[389788319,1759848642711,-170.92839409,0.00022873,2]
[389788320,1759848642720,-203.67230258,0.00022873,2]
[389788321,1759848642730,-510.46914813,0.00022873,2]
[389788322,1759848642739,-500.0,0.00022873,2]
[389788323,1759848642749,-500.0,0.00022873,2]
[389788324,1759848642759,-500.0,0.00022873,2]
[389788325,1759848642769,-500.0,0.00022873,2]
[389788326,1759848642778,-163.92239522,0.00022873,2]
[389788327,1759848642788,-500.0,0.00022873,2]
[389788329,1759848642797,-500.0,0.00022873,2]
[389788330,1759848642807,-500.0,0.00022873,2]
[389788331,1759848642817,-500.0,0.00022873,2]
[389788332,1759848642827,-500.0,0.00022873,2]
[389788333,1759848642836,-500.0,0.00022873,2]
[389788334,1759848642848,-527.12120474,0.00022873,2]
[389788336,1759848642857,-500.0,0.00022873,2]
[389788338,1759848642868,-500.0,0.00022873,2]
[389788339,1759848642877,-282.32951854,0.00022873,2]
[389788340,1759848642887,-500.0,0.00022873,2]
[389788341,1759848642897,-500.0,0.00022873,2]
[389788342,1759848642906,-500.0,0.00022873,2]
[389788343,1759848642916,-526.71245322,0.00022873,2]
[389788344,1759848642926,-517.91923232,0.00022873,2]
[389788345,1759848642936,-500.0,0.00022873,2]
[389788346,1759848642945,-500.0,0.00022873,2]
[389788347,1759848642956,-500.0,0.00022873,2]
[389788348,1759848642966,-500.0,0.00022873,2]
[389788349,1759848642976,-800.0,0.00022876,2]
[389788350,1759848642986,-860.0,0.0002288,2]
[389788351,1759848642996,-800.0,0.00022882,2]
[389788352,1759848643007,-151.0,0.000229,10]
[389788353,1759848643022,-140134.21651823,0.000229,3]
[389788354,1759848643035,-533.72506543,0.000229,3]
[389788355,1759848643045,-402.02512307,0.000229,3]
[389788356,1759848643056,-151.0,0.000229,7]
[389788357,1759848643066,-152.159037,0.000229,7]
[389788358,1759848643078,-151.0,0.000229,7]
[389788359,1759848643089,-190.254912,0.000229,7]
[389788360,1759848643101,-151.0,0.000229,7]
[389788361,1759848643113,-160.658113,0.000229,7]
[389788362,1759848643124,-151.0,0.000229,7]
[389788363,1759848643134,-190.254912,0.000229,7]
[389788364,1759848643144,-151.0,0.000229,7]
[389788365,1759848643155,-190.254912,0.000229,7]
[389788366,1759848643165,-151.0,0.000229,7]
[389788367,1759848643175,-190.254912,0.000229,7]
[389788368,1759848643185,-151.0,0.000229,7]
[389788369,1759848643195,-1024.730886,0.000229,7]
[389788370,1759848643206,-1024.730886,0.000229,7]
[389788371,1759848643217,-1024.730886,0.000229,7]
[389788372,1759848643227,-1024.730886,0.000229,7]
[389788374,1759848643238,-432.621204,0.000229,7]
[389788375,1759848643248,-432.621204,0.000229,7]
[389788378,1759848643258,-432.621204,0.000229,7]
[389788381,1759848643268,-432.621204,0.000229,7]
[389788383,1759848643278,-151.0,0.000229,7]
[389788386,1759848643287,-858.594354,0.000229,7]
[389788388,1759848643297,-1354.835159,0.000229,7]
[389788390,1759848643307,-151.0,0.000229,7]
[389788392,1759848643317,-1354.835159,0.000229,7]
[389788394,1759848643327,-152.550784,0.000229,7]